bitfinex/quotes_SOLUSD_20250822
["timestamp","ask_amount","ask_price","bid_price","bid_amount"]
[1755861743050,0.06,180.68,180.67,11.48281052]
[1755861743632,0.06,180.68,180.67,6.50927636]
[1755861745040,0.06,180.68,180.67,11.48281052]
[1755861747063,0.06,180.68,180.67,5.81927636]
[1755861748863,0.06,180.68,180.67,6.50927636]
[1755861749298,0.06,180.68,180.67,11.48281052]
[1755861749659,0.06,180.68,180.67,6.50927636]
[1755861749871,0.06,180.68,180.67,5.81927636]
[1755861750072,10.06,180.68,180.67,5.81927636]
[1755861751178,10.06,180.68,180.67,6.50927636]
[1755861751770,10.06,180.68,180.67,5.81927636]
[1755861752084,10.06,180.68,180.66,5.53515718]
[1755861752290,10.0,180.67,180.66,5.81948032]
[1755861752469,10.0,180.67,180.66,6.50948032]
[1755861753362,0.06,180.68,180.66,6.50948032]
[1755861753363,10.06,180.68,180.66,6.50948032]
[1755861753562,10.06,180.68,180.67,0.69]
[1755861754272,10.06,180.68,180.66,10.79301448]
[1755861754273,10.0,180.67,180.66,10.79301448]
[1755861754487,10.0,180.67,180.66,5.81948032]
[1755861755096,10.06,180.68,180.66,5.81948032]
[1755861755317,10.0,180.67,180.66,5.81948032]
[1755861756182,10.0,180.67,180.66,6.50948032]
[1755861756389,10.0,180.67,180.66,11.48301448]
[1755861756704,10.0,180.67,180.66,5.81948032]
[1755861757108,10.0,180.67,180.66,0.28432314]
[1755861757315,10.0,180.67,180.65,5.84987118]
[1755861757316,10.0,180.66,180.65,5.84987118]
[1755861757617,15.62353416,180.66,180.65,0.03]
[1755861758719,14.97353416,180.66,180.65,0.03]
[1755861759410,10.0,180.66,180.65,5.9778573]
[1755861760191,142.4,180.67,180.66,5.5352596]
[1755861760423,10.0,180.67,180.66,5.5352596]
[1755861761621,10.0,180.66,180.65,5.84981254]
[1755861761825,15.62353416,180.67,180.66,0.28432314]
[1755861762205,10.0,180.67,180.66,0.28432314]
[1755861762625,10.0,180.67,180.66,5.81958274]
[1755861762795,10.0,180.67,180.66,0.28432314]
[1755861763902,10.0,180.67,180.66,0.31432314]
[1755861764720,10.0,180.67,180.66,5.84958274]
[1755861764896,10.0,180.67,180.66,6.53958274]
[1755861765096,10.0,180.67,180.66,5.84958274]
[1755861766923,10.0,180.67,180.66,6.53958274]
[1755861768021,10.0,180.67,180.66,11.5131169]
[1755861768315,0.06,180.68,180.67,0.28432314]
[1755861768523,0.06,180.68,180.67,5.9678573]
[1755861769020,0.06,180.68,180.67,11.50281052]
[1755861772428,0.06,180.68,180.67,6.52927636]
[1755861772631,0.06,180.68,180.67,11.50281052]
[1755861777942,0.06,180.68,180.67,54.46281052]
[1755861790565,0.06,180.68,180.67,49.48927636]
[1755861790866,0.06,180.68,180.67,54.46281052]
[1755861793258,0.06,180.68,180.67,53.75281052]
[1755861793952,10.76,180.68,180.67,5.67711479]
[1755861794160,10.76,180.68,180.67,48.47495322]
[1755861794958,10.76,180.68,180.67,48.61711479]
[1755861795758,10.76,180.68,180.67,48.75927636]
[1755861797640,10.76,180.68,180.67,43.22432314]
[1755861797960,10.76,180.68,180.67,0.28432314]
[1755861798160,10.76,180.68,180.67,5.81927636]
[1755861799359,10.76,180.68,180.67,0.28432314]
[1755861803347,10.76,180.68,180.67,5.81927636]
[1755861805043,10.06,180.68,180.67,5.81927636]
[1755861805538,10.76,180.68,180.67,5.81927636]
[1755861806565,10.76,180.68,180.67,0.28432314]
[1755861809068,10.06,180.68,180.67,10.79281052]
[1755861809444,10.06,180.68,180.67,11.46281052]
[1755861809756,10.06,180.68,180.67,6.48927636]
[1755861809955,10.06,180.68,180.67,11.46281052]
[1755861810569,0.06,180.68,180.67,11.46281052]
[1755861810755,10.06,180.68,180.67,11.46281052]
[1755861812964,10.06,180.68,180.67,54.40281052]
[1755861814371,0.06,180.68,180.67,54.40281052]
[1755861814668,10.06,180.68,180.67,54.40281052]
[1755861817274,0.06,180.68,180.67,54.40281052]
[1755861817477,10.06,180.68,180.67,54.40281052]
[1755861817875,10.06,180.68,180.67,53.73281052]
[1755861818078,10.06,180.68,180.67,54.40281052]
[1755861818880,10.06,180.68,180.67,5.81927636]
[1755861819084,10.0,180.67,180.66,0.03]
[1755861819382,15.67353416,180.67,180.66,0.03]
[1755861823885,10.7,180.67,180.66,0.03]
[1755861824068,15.67353416,180.67,180.66,0.03]
[1755861824270,148.07353416,180.67,180.66,0.03]
[1755861828171,58.61353416,180.67,180.66,0.03]
[1755861830677,60.83335116,180.67,180.66,0.03]
[1755861837997,60.13335116,180.67,180.66,0.03]
[1755861838598,60.83335116,180.67,180.66,0.03]
[1755861839677,60.13335116,180.67,180.66,0.03]
[1755861839872,12.219817,180.67,180.66,0.03]
[1755861840101,60.13335116,180.67,180.66,0.03]
[1755861840286,60.83335116,180.67,180.66,0.03]
[1755861841487,60.13335116,180.67,180.66,0.03]
[1755861845990,60.13335116,180.67,180.66,0.72]
[1755861846192,17.19335116,180.67,180.66,0.72]
[1755861846392,60.13335116,180.67,180.66,0.03]
[1755861847389,17.89335116,180.67,180.66,0.03]
[1755861847593,60.13335116,180.67,180.66,0.03]
[1755861847815,60.83335116,180.67,180.66,0.03]
[1755861847985,60.13335116,180.67,180.66,0.03]
[1755861848309,58.34410218,180.67,180.66,0.03]
[1755861848603,58.34410218,180.67,180.66,0.72]
[1755861849016,58.34410218,180.67,180.66,0.03]
[1755861849497,55.159817,180.67,180.66,0.03]
[1755861849691,15.40410218,180.67,180.66,0.03]
[1755861849909,58.34410218,180.67,180.66,0.03]
[1755861850812,15.40410218,180.67,180.66,0.03]
[1755861851011,58.32410218,180.67,180.66,0.03]
[1755861851207,59.02410218,180.67,180.66,0.03]
[1755861851810,55.839817,180.67,180.66,0.03]
[1755861852004,55.139817,180.67,180.66,0.03]
[1755861852208,58.32410218,180.67,180.66,0.03]
[1755861852916,23.59559401,180.64,180.63,0.03]
[1755861853123,56.10428518,180.64,180.63,0.03]
[1755861853496,58.32459518,180.64,180.63,0.03]
[1755861853695,59.02459518,180.64,180.63,0.03]
[1755861854204,12.22031,180.64,180.63,0.03]
[1755861854416,58.46459518,180.64,180.63,0.03]
[1755861855198,15.40459518,180.64,180.63,0.03]
[1755861855495,12.22031,180.64,180.63,0.72]
[1755861859125,17.19647589,180.64,180.63,0.03]
[1755861860508,66.51234834,180.64,180.63,0.03]
[1755861860727,70.19641566,180.64,180.63,0.03]
[1755861860934,70.19648561,180.64,180.63,0.03]
[1755861861124,65.79234834,180.64,180.63,0.03]
[1755861861303,12.22031,180.64,180.63,0.03]
[1755861861504,60.25647589,180.64,180.63,0.03]
[1755861862020,65.79234834,180.64,180.63,0.03]
[1755861862225,17.19647589,180.64,180.63,0.03]
[1755861862531,12.22031,180.64,180.63,0.75]
[1755861863327,17.25647589,180.64,180.63,0.75]
[1755861863500,17.25647589,180.64,180.63,0.03]
[1755861863906,22.79234834,180.64,180.63,0.03]
[1755861864421,17.25647589,180.64,180.63,0.03]
[1755861868028,12.28031,180.64,180.63,0.03]
[1755861868237,17.25647589,180.64,180.63,0.03]
[1755861868828,12.28031,180.64,180.63,0.75]
[1755861870135,17.25647589,180.64,180.63,0.03]
[1755861870921,27.19774524,180.64,180.63,0.03]
[1755861871113,17.97647589,180.64,180.63,0.03]
[1755861871319,17.25647589,180.64,180.63,0.03]
[1755861873422,12.28031,180.64,180.63,0.03]
[1755861873624,17.25647589,180.64,180.63,0.03]
[1755861873843,12.28031,180.64,180.63,0.75]
[1755861874526,10.06,180.64,180.63,0.75]
[1755861875735,15.03616589,180.64,180.63,0.03]
[1755861876314,21.29203834,180.64,180.63,0.03]
[1755861876850,64.25203834,180.64,180.63,0.03]
[1755861877439,10.06,180.64,180.63,0.03]
[1755861877644,10.06,180.64,180.63,0.75]
[1755861878338,15.03616589,180.64,180.63,0.03]
[1755861878846,20.57203834,180.64,180.63,0.03]
[1755861879220,64.25203834,180.64,180.63,0.03]
[1755861880636,59.27587245,180.64,180.63,0.03]
[1755861880817,57.99616589,180.64,180.63,0.03]
[1755861881025,57.99616589,180.64,180.63,0.75]
[1755861881441,57.99616589,180.64,180.63,0.03]
[1755861881619,15.03616589,180.64,180.63,0.03]
[1755861881823,17.25610689,180.64,180.63,0.03]
[1755861882949,12.279941,180.64,180.63,0.03]
[1755861883243,17.25610689,180.64,180.63,0.03]
[1755861885152,12.279941,180.64,180.63,0.75]
[1755861885454,17.25610689,180.64,180.63,0.03]
[1755861885823,17.25610689,180.64,180.63,0.75]
[1755861886021,17.25610689,180.64,180.63,0.03]
[1755861892063,20.94747586,180.64,180.63,0.03]
[1755861892761,27.14334831,180.64,180.63,0.03]
[1755861894071,31.24529709,180.64,180.63,0.03]
[1755861895460,44.8408911,180.64,180.63,0.03]
[1755861895657,39.86472521,180.64,180.63,0.03]
[1755861895861,49.81705699,180.64,180.63,0.03]
[1755861896349,44.8408911,180.64,180.63,0.03]
[1755861897461,49.81705699,180.64,180.63,0.03]
[1755861898169,54.42446871,180.64,180.63,0.03]
[1755861898354,49.81705699,180.64,180.63,0.03]
[1755861899668,36.0,180.63,180.62,0.03]
[1755861899974,71.34564953,180.63,180.62,0.03]
[1755861900173,72.48987967,180.63,180.62,0.03]
[1755861900350,76.58874256,180.63,180.62,0.03]
[1755861901057,71.24257667,180.63,180.62,0.03]
[1755861901265,97.24257667,180.63,180.62,0.03]
[1755861901871,97.24257667,180.63,180.59,0.03]
[1755861901872,36.0,180.6,180.59,0.03]
[1755861902074,105.52101721,180.6,180.59,0.03]
[1755861902260,13.69136897,180.6,180.59,0.74]
[1755861902579,55.44068,180.6,180.59,0.74]
[1755861902753,65.95394445,180.6,180.59,0.74]
[1755861902951,65.95394445,180.6,180.59,0.03]
[1755861903453,69.64085875,180.6,180.59,0.03]
[1755861903853,69.64085875,180.6,180.59,0.74]
[1755861904278,65.95394445,180.6,180.59,0.74]
[1755861905275,12.22068,180.6,180.59,0.74]
[1755861905481,10.0,180.6,180.59,6.56172831]
[1755861905670,10.0,180.6,180.59,11.5378942]
[1755861906072,10.0,180.6,180.59,6.00048903]
[1755861906276,10.0,180.6,180.59,6.56172831]
[1755861906473,10.0,180.61,180.59,11.5378942]
[1755861906657,10.0,180.6,180.59,5.85172831]
[1755861907184,10.0,180.6,180.59,6.56172831]
[1755861911087,10.0,180.6,180.59,1.02432314]
[1755861911566,10.0,180.6,180.59,0.03]
[1755861911772,14.97616589,180.6,180.59,0.03]
[1755861912296,10.0,180.6,180.59,0.03]
[1755861912477,14.97616589,180.6,180.59,0.03]
[1755861913184,24.86217606,180.6,180.59,0.03]
[1755861913557,38.45777007,180.6,180.59,0.03]
[1755861913960,42.55613092,180.6,180.59,0.03]
[1755861915470,85.77613092,180.6,180.58,0.03]
[1755861915675,23.42343835,180.59,180.58,0.03]
[1755861915872,23.42343835,180.59,180.56,0.03]
[1755861915873,39.59559401,180.57,180.56,0.03]
[1755861916074,105.57903236,180.57,180.56,0.03]
[1755861916271,106.23903236,180.57,180.56,0.03]
[1755861917185,106.80088496,180.57,180.56,0.03]
[1755861917392,111.77705085,180.57,180.56,0.03]
[1755861917600,116.75321674,180.57,180.56,0.03]
[1755861917772,73.53321674,180.57,180.56,0.03]
[1755861917974,73.52417777,180.57,180.56,0.03]
[1755861918375,73.52191097,180.57,180.56,0.03]
[1755861918675,73.52135508,180.57,180.56,0.03]
[1755861918878,68.54518919,180.57,180.56,0.03]
[1755861919281,73.52135508,180.57,180.56,0.03]
[1755861921064,73.51924782,180.57,180.56,0.03]
[1755861921495,132.27,180.55,180.5,0.1]
[1755861921676,19.95233178,180.55,180.5,0.1]
[1755861921876,20.67233178,180.55,180.5,0.1]
[1755861922090,22.89412178,180.55,180.5,0.1]
[1755861922777,28.43275373,180.55,180.5,0.1]
[1755861923094,43.19795589,180.55,180.54,0.77]
[1755861923278,40.97616589,180.55,180.54,0.77]
[1755861924694,40.97616589,180.55,180.54,0.1]
[1755861925101,46.51479784,180.55,180.54,0.1]
[1755861926305,48.73621784,180.55,180.54,0.1]
[1755861926805,62.33181185,180.55,180.54,0.1]
[1755861927915,43.19758589,180.55,180.54,0.77]
[1755861928116,40.97616589,180.55,180.54,0.77]
[1755861928409,14.97616589,180.55,180.54,0.77]
[1755861930112,10.0,180.55,180.54,0.77]
[1755861930286,14.97616589,180.55,180.54,0.77]
[1755861930817,10.0,180.55,180.54,6.30893873]
[1755861930978,9.28,180.55,180.54,6.59326187]
[1755861931180,9.28,180.56,180.55,0.28432314]
[1755861931977,9.28,180.56,180.55,6.49295509]
[1755861934879,9.28,180.56,180.55,0.95432314]
[1755861935080,9.28,180.56,180.55,0.28432314]
[1755861935495,9.28,180.56,180.55,0.95432314]
[1755861937396,9.28,180.55,180.54,0.1]
[1755861937603,14.25616589,180.55,180.54,0.1]
[1755861937907,14.97616589,180.55,180.54,0.1]
[1755861938122,14.25616589,180.55,180.54,0.1]
[1755861938324,9.28,180.55,180.54,0.1]
[1755861938522,14.25616589,180.55,180.54,0.1]
[1755861938727,20.51479784,180.55,180.54,0.1]
[1755861939627,9.28,180.55,180.54,0.1]
[1755861939925,14.25616589,180.55,180.54,0.1]
[1755861943222,9.28,180.55,180.54,0.1]
[1755861943414,14.25616589,180.55,180.54,0.1]
[1755861944122,14.25616589,180.55,180.54,0.77]
[1755861944711,14.25616589,180.55,180.54,0.1]
[1755861946835,14.25616589,180.55,180.54,0.77]
[1755861947141,9.28,180.55,180.54,6.59326187]
[1755861947516,9.28,180.55,180.54,11.56942776]
[1755861948053,0.06,180.56,180.54,11.56942776]
[1755861948230,0.06,180.56,180.55,0.72]
[1755861948413,0.06,180.56,180.55,1.00432314]
[1755861948607,0.06,180.56,180.55,5.98048903]
[1755861949025,9.34,180.56,180.55,1.00432314]
[1755861949334,9.34,180.56,180.55,5.98048903]
[1755861950232,9.34,180.56,180.55,11.51912098]
[1755861950641,9.34,180.56,180.55,6.54295509]
[1755861951144,9.34,180.56,180.55,11.51912098]
[1755861956852,9.28,180.55,180.54,0.1]
[1755861957237,9.28,180.55,180.54,5.92316137]
[1755861957432,9.28,180.55,180.54,0.38432314]
[1755861958651,9.28,180.55,180.54,5.92326187]
[1755861959265,14.97616589,180.55,180.54,0.1]
[1755861959760,147.37616589,180.55,180.54,0.1]
[1755861959953,141.68,180.55,180.54,0.82]
[1755861960159,141.68,180.55,180.54,6.35893873]
[1755861960361,9.28,180.55,180.54,11.61942776]
[1755861960950,9.28,180.55,180.54,6.64326187]
[1755861962562,9.28,180.55,180.54,5.92326187]
[1755861962763,9.34,180.56,180.55,5.82295509]
[1755861962971,9.34,180.56,180.55,11.51912098]
[1755861963152,0.06,180.56,180.55,11.51912098]
[1755861964642,0.06,180.56,180.55,6.54295509]
[1755861964870,0.06,180.56,180.55,11.51912098]
[1755861967351,0.06,180.56,180.55,10.79912098]
[1755861967551,0.06,180.56,180.55,11.51912098]
[1755861968960,0.06,180.56,180.55,5.82295509]
[1755861969170,9.34,180.56,180.55,10.79912098]
[1755861969577,10.06,180.56,180.55,0.28432314]
[1755861969775,9.28,180.55,180.54,0.1]
[1755861969993,14.97616589,180.55,180.54,0.1]
[1755861971671,20.51479784,180.55,180.54,0.1]
[1755861972805,10.0,180.55,180.54,0.1]
[1755861973096,14.97616589,180.55,180.54,0.1]
[1755861981483,9.28,180.55,180.54,0.1]
[1755861981678,14.91616589,180.55,180.54,0.1]
[1755861982590,20.45479784,180.55,180.54,0.1]
[1755861983602,14.91616589,180.55,180.54,0.1]
[1755861984622,9.94,180.55,180.54,0.1]
[1755861984792,14.91616589,180.55,180.54,0.1]
[1755861987116,20.45479784,180.55,180.54,0.1]
[1755861989029,14.91616589,180.55,180.54,0.1]
[1755861990600,20.45479784,180.55,180.54,0.1]
[1755861997717,14.91616589,180.55,180.54,0.1]
[1755861998332,20.45479784,180.55,180.54,0.1]
[1755862000825,63.45479784,180.55,180.54,0.1]
[1755862001434,62.79479784,180.55,180.54,0.1]
[1755862001638,63.45479784,180.55,180.54,0.1]
[1755862003617,9.28,180.55,180.54,0.77]
[1755862003813,57.25616589,180.55,180.54,0.77]
[1755862004013,57.25616589,180.55,180.54,0.1]
[1755862004221,14.25616589,180.55,180.54,0.77]
[1755862004414,57.25616589,180.55,180.54,0.77]
[1755862005214,57.25616589,180.55,180.54,0.1]
[1755862005548,57.25616589,180.55,180.54,0.77]
[1755862005839,57.25616589,180.55,180.54,0.1]
[1755862006410,14.25616589,180.55,180.54,0.1]
[1755862008028,9.28,180.55,180.54,0.76]
[1755862008229,14.25616589,180.55,180.54,6.29893873]
[1755862008839,14.25616589,180.55,180.54,0.1]
[1755862011037,14.25616589,180.55,180.54,0.76]
[1755862011335,14.25616589,180.55,180.54,0.1]
[1755862014238,9.28,180.55,180.54,0.1]
[1755862014439,14.25616589,180.55,180.54,0.1]
[1755862016544,12.4684958,180.55,180.54,0.1]
[1755862022749,13.1284958,180.55,180.54,0.1]
[1755862023131,16.82694512,180.55,180.54,0.1]
[1755862025339,22.36557707,180.55,180.54,0.1]
[1755862025745,16.82694512,180.55,180.54,0.1]
[1755862026629,16.16694512,180.55,180.54,0.1]
[1755862028034,22.36557707,180.55,180.54,0.1]
[1755862029056,16.82694512,180.55,180.54,0.1]
[1755862029254,16.16694512,180.55,180.54,0.1]
[1755862029437,16.22694512,180.55,180.54,0.1]
[1755862029853,16.88694512,180.55,180.54,0.1]
[1755862030233,16.22694512,180.55,180.54,0.1]
[1755862030434,16.88680795,180.55,180.54,0.1]
[1755862031157,22.4254399,180.55,180.54,0.1]
[1755862032746,65.4054399,180.55,180.54,0.1]
[1755862033461,59.86680795,180.55,180.54,0.1]
[1755862033672,59.20680795,180.55,180.54,0.1]
[1755862033838,56.01831215,180.55,180.54,0.1]
[1755862034037,59.20680795,180.55,180.54,0.1]
[1755862034764,65.4054399,180.55,180.54,0.1]
[1755862035069,70.9752369,180.55,180.54,0.1]
[1755862038652,27.9952369,180.55,180.54,0.1]
[1755862038851,70.9752369,180.55,180.54,0.1]
[1755862039843,65.43660495,180.55,180.54,0.1]
[1755862040153,62.28810915,180.55,180.54,0.1]
[1755862040354,65.47660495,180.55,180.54,0.1]
[1755862041966,71.0152369,180.55,180.54,0.1]
[1755862043671,61.58810915,180.55,180.54,0.1]
[1755862043878,64.77660495,180.55,180.54,0.1]
[1755862044084,65.47660495,180.55,180.54,0.1]
[1755862045140,71.0152369,180.55,180.54,0.1]
[1755862047870,71.01429658,180.55,180.54,0.1]
[1755862050276,28.03429658,180.55,180.54,0.1]
[1755862050482,71.01429658,180.55,180.54,0.1]
[1755862051556,28.03429658,180.55,180.54,0.1]
[1755862051754,71.01429658,180.55,180.54,0.1]
[1755862054084,18.60716883,180.55,180.54,0.1]
[1755862054268,61.0782928,180.55,180.54,0.1]
[1755862054450,64.77407903,180.55,180.54,0.1]
[1755862054850,71.01271098,180.55,180.54,0.1]
[1755862057065,28.03271098,180.55,180.54,0.1]
[1755862057268,71.01271098,180.55,180.54,0.1]
[1755862057570,67.82421518,180.55,180.54,0.1]
[1755862057881,61.58558323,180.55,180.54,0.1]
[1755862058076,21.79407903,180.55,180.54,0.1]
[1755862058285,64.77407903,180.55,180.54,0.78]
[1755862058587,61.58558323,180.55,180.54,0.1]
[1755862058758,64.77407903,180.55,180.54,0.1]
[1755862063789,65.47407903,180.55,180.54,0.1]
[1755862063971,71.01271098,180.55,180.54,0.1]
[1755862064376,75.12316802,180.55,180.54,0.1]
[1755862066993,75.12315354,180.55,180.54,0.1]
[1755862069789,75.12279269,180.55,180.54,0.1]
[1755862070298,71.93429689,180.55,180.54,0.1]
[1755862070502,75.12279269,180.55,180.54,0.1]
[1755862072894,75.12216803,180.55,180.54,0.1]
[1755862073088,75.12229175,180.55,180.54,0.1]
[1755862073388,75.10229175,180.55,180.54,0.1]
[1755862073570,75.10220159,180.55,180.54,0.1]
[1755862074191,88.6977956,180.55,180.54,0.1]
[1755862074490,101.4517788,180.55,180.54,0.1]
[1755862080469,57.7917788,180.55,180.54,0.1]
[1755862080671,113.9977956,180.55,180.54,0.1]
[1755862081274,114.7177956,180.55,180.54,0.1]
[1755862081482,113.99496596,180.55,180.54,0.1]
[1755862081986,114.71496596,180.55,180.54,0.1]
[1755862082185,114.7143271,180.55,180.54,0.1]
[1755862083315,127.4683103,180.55,180.54,0.1]
[1755862083905,126.7483103,180.55,180.54,0.1]
[1755862084477,127.46760683,180.55,180.54,0.1]
[1755862085203,126.74760683,180.55,180.54,0.1]
[1755862085707,114.71362363,180.55,180.54,0.1]
[1755862086002,114.71385358,180.55,180.54,0.1]
[1755862087273,127.46783678,180.55,180.54,0.1]
[1755862090705,123.36228819,180.55,180.54,0.1]
[1755862090908,127.46800609,180.55,180.54,0.1]
[1755862091215,127.46772709,180.55,180.54,0.1]
[1755862092583,101.46772709,180.55,180.54,0.1]
[1755862093591,101.46772709,180.55,180.52,0.03]
[1755862093592,171.89559401,180.53,180.52,0.03]
[1755862093921,227.25912159,180.53,180.52,0.03]
[1755862094124,227.97912159,180.53,180.52,0.03]
[1755862094284,230.20091159,180.53,180.52,0.03]
[1755862095115,239.48091159,180.53,180.52,0.03]
[1755862095312,238.76091159,180.53,180.52,0.03]
[1755862095543,238.76091159,180.53,180.52,0.71]
[1755862096179,147.49757623,180.53,180.52,0.03]
[1755862096383,147.49757623,180.53,180.52,0.71]
[1755862096384,189.9302858,180.53,180.52,0.71]
[1755862099355,57.6302858,180.53,180.52,0.71]
[1755862100233,14.6902858,180.53,180.52,0.71]
[1755862101734,11.50179,180.53,180.52,0.71]
[1755862101940,14.6902858,180.53,180.52,0.71]
[1755862102444,14.6902858,180.53,180.52,6.2495524]
[1755862103547,14.6902858,180.53,180.52,0.71]
[1755862106844,14.6902858,180.53,180.52,0.03]
[1755862107049,15.4102858,180.53,180.52,0.03]
[1755862108328,20.94953135,180.53,180.52,0.03]
[1755862109126,24.64593758,180.53,180.52,0.03]
[1755862110352,23.92593758,180.53,180.52,0.03]
[1755862110531,24.64593758,180.53,180.52,0.03]
[1755862114047,23.93410458,180.53,180.52,0.03]
[1755862118239,20.02560878,180.53,180.52,0.03]
[1755862118439,23.93410458,180.53,180.52,0.03]
[1755862120457,23.21410458,180.53,180.52,0.03]
[1755862120650,23.93410458,180.53,180.52,0.03]
[1755862120833,37.52969859,180.53,180.52,0.03]
[1755862121641,80.42969859,180.53,180.52,0.03]
[1755862125134,106.42969859,180.53,180.52,0.03]
[1755862128460,80.42969859,180.53,180.52,0.03]
[1755862129262,37.52969859,180.53,180.52,0.03]
[1755862129560,80.42969859,180.53,180.52,0.03]
[1755862133946,79.70969859,180.53,180.52,0.03]
[1755862135774,76.52120279,180.53,180.52,0.7]
[1755862135952,79.70969859,180.53,180.52,0.03]
[1755862136769,76.52120279,180.53,180.52,0.03]
[1755862136945,79.70969859,180.53,180.52,0.03]
[1755862138847,76.52120279,180.53,180.52,0.7]
[1755862139045,28.08195724,180.53,180.52,0.7]
[1755862139268,70.45404681,180.53,180.52,0.03]
[1755862139472,70.45404681,180.53,180.52,0.7]
[1755862139981,67.26555101,180.53,180.52,0.7]
[1755862140269,75.99329236,180.53,180.52,0.7]
[1755862140590,70.45404681,180.53,180.52,0.7]
[1755862141074,75.99329236,180.53,180.52,0.03]
[1755862141778,79.68740688,180.53,180.52,0.03]
[1755862142349,36.80740688,180.53,180.52,0.03]
[1755862142574,79.68740688,180.53,180.52,0.03]
[1755862145772,10.789957,180.53,180.52,0.7]
[1755862145973,9.28,180.53,180.52,0.7]
[1755862146183,14.6895458,180.53,180.52,0.03]
[1755862146480,57.5695458,180.53,180.52,0.03]
[1755862146774,63.10879135,180.53,180.52,0.03]
[1755862146952,63.16879135,180.53,180.52,0.03]
[1755862147154,57.6295458,180.53,180.52,0.03]
[1755862147460,54.44105,180.53,180.52,0.03]
[1755862147647,57.6295458,180.53,180.52,0.03]
[1755862149179,57.6295458,180.53,180.52,0.7]
[1755862149675,58.13724734,180.53,180.52,0.7]
[1755862149891,11.56105,180.53,180.52,0.7]
[1755862150061,54.44105,180.53,180.52,0.7]
[1755862150382,11.56105,180.53,180.52,0.7]
[1755862154780,9.34,180.53,180.52,0.7]
[1755862156678,9.34,180.53,180.52,0.03]
[1755862157369,9.34,180.53,180.52,0.71]
[1755862157555,9.34,180.53,180.52,3.8984958]
[1755862158865,9.34,180.53,180.52,0.03]
[1755862159198,9.34,180.53,180.52,3.2184958]
[1755862159365,9.34,180.53,180.52,0.71]
[1755862159566,9.34,180.53,180.52,3.8984958]
[1755862159873,9.34,180.53,180.52,0.71]
[1755862161364,9.34,180.53,180.52,0.03]
[1755862161686,9.34,180.53,180.52,3.2184958]
[1755862161866,9.34,180.53,180.52,0.03]
[1755862163079,10.0,180.53,180.52,0.03]
[1755862163261,61.58774135,180.53,180.52,0.03]
[1755862163589,59.2669908,180.53,180.52,0.03]
[1755862164063,61.61774055,180.53,180.52,0.03]
[1755862164264,56.078495,180.53,180.52,0.03]
[1755862164860,61.61774055,180.53,180.52,0.03]
[1755862165088,64.80623635,180.53,180.52,0.03]
[1755862165274,18.75774055,180.53,180.52,0.03]
[1755862165469,61.61774055,180.53,180.52,0.03]
[1755862165674,64.80623635,180.53,180.52,0.03]
[1755862165869,78.40183036,180.53,180.52,0.03]
[1755862166574,21.94623635,180.53,180.52,0.03]
[1755862166774,64.80623635,180.53,180.52,0.03]
[1755862167884,12.558495,180.53,180.52,0.03]
[1755862168070,9.34,180.53,180.52,0.71]
[1755862168870,9.34,180.53,180.52,0.03]
[1755862171698,10.0,180.53,180.52,0.03]
[1755862172381,9.34,180.53,180.52,0.03]
[1755862173676,15.53924555,180.53,180.52,0.03]